fUSD/lending_fUSD_20260507
["ID","MTS","AMOUNT","RATE_DAILY","PERIOD"]
[421777908,1778141444000,-6483.92,0.00012055,2]
[421777911,1778141444000,-2157.14243826,0.00012071,2]
[421777907,1778141444000,-151.0,0.00012,2]
[421777910,1778141444000,-200.0,0.00012071,2]
[421777917,1778141444000,-503.34044827,0.00012093,2]
[421777912,1778141444000,-2000.0,0.0001208,2]
[421777913,1778141444000,-4954.78607409,0.00012081,2]
[421777903,1778141444000,-228.87538877,0.00012,2]
[421777905,1778141444000,-150.0,0.00012,2]
[421777904,1778141444000,-182.31006729,0.00012,2]
[421777901,1778141444000,-151.24199492,0.00012,2]
[421777897,1778141444000,-1058.71341831,0.000115,2]
[421777899,1778141444000,-150.0,0.00012,2]
[421777900,1778141444000,-161.73486169,0.00012,2]
[421777898,1778141444000,-344310.05376309,0.00012,2]
[421777906,1778141444000,-200.82683596,0.00012,2]
[421777909,1778141444000,-292.39324211,0.00012069,2]
[421777902,1778141444000,-153.73329969,0.00012,2]
[421777919,1778141444000,-7498.57036046,0.000121,2]
[421777915,1778141444000,-1802.68,0.00012085,2]
[421777937,1778141444000,-167.42,0.00012637,2]
[421777936,1778141444000,-2236.95670848,0.00012619,2]
[421777932,1778141444000,-310.87469086,0.000125,2]
[421777935,1778141444000,-200.0,0.00012619,2]
[421777934,1778141444000,-500.0,0.00012592,2]
[421777927,1778141444000,-688.65,0.00012345,2]
[421777926,1778141444000,-167.42,0.00012329,2]
[421777925,1778141444000,-321.3,0.0001222,2]
[421777933,1778141444000,-250.0,0.00012582,2]
[421777922,1778141444000,-2000.0,0.0001215,2]
[421777924,1778141444000,-2000.0,0.00012193,2]
[421777923,1778141444000,-2000.0,0.0001218,2]
[421777921,1778141444000,-2000.0,0.0001213,2]
[421777918,1778141444000,-2000.0,0.000121,2]
[421777931,1778141444000,-150.0,0.000125,2]
[421777930,1778141444000,-150.0,0.000125,2]
[421777920,1778141444000,-4761.25138763,0.000121,2]
[421777928,1778141444000,-2000.0,0.00012421,2]
[421777929,1778141444000,-200.0,0.00012492,2]
[421777980,1778141445000,-500.0,0.00014,2]
[421777979,1778141445000,-500.0,0.00014,2]
[421777978,1778141445000,-500.0,0.00014,2]
[421777972,1778141445000,-395.0,0.00013954,2]
[421777975,1778141445000,-395.0,0.00013996,2]
[421777977,1778141445000,-500.0,0.00014,2]
[421777976,1778141445000,-155.0,0.00013999,2]
[421777982,1778141445000,-500.0,0.00014,2]
[421777981,1778141445000,-500.0,0.00014,2]
[421777973,1778141445000,-395.0,0.00013966,2]
[421777974,1778141445000,-395.0,0.00013967,2]
[421777983,1778141445000,-500.0,0.00014,2]
[421777989,1778141445000,-500.0,0.00014,2]
[421777985,1778141445000,-500.0,0.00014,2]
[421777987,1778141445000,-500.0,0.00014,2]
[421777991,1778141445000,-500.0,0.00014,2]
[421777990,1778141445000,-500.0,0.00014,2]
[421777993,1778141445000,-500.0,0.00014,2]
[421777986,1778141445000,-500.0,0.00014,2]
[421777992,1778141445000,-500.0,0.00014,2]
[421777988,1778141445000,-500.0,0.00014,2]
[421777995,1778141445000,-500.0,0.00014,2]
[421778002,1778141445000,-500.0,0.00014,2]
[421778003,1778141445000,-500.0,0.00014,2]
[421778005,1778141445000,-500.0,0.00014,2]
[421777984,1778141445000,-500.0,0.00014,2]
[421777965,1778141445000,-538.66347567,0.00013863,2]
[421777960,1778141445000,-200.0,0.00013699,2]
[421777966,1778141445000,-7498.57036046,0.00013901,2]
[421777997,1778141445000,-500.0,0.00014,2]
[421777942,1778141445000,-168.54,0.00012816,2]
[421777941,1778141445000,-4761.25138763,0.00012701,2]
[421777939,1778141445000,-7498.57036046,0.00012701,2]
[421777944,1778141445000,-1476.0,0.00012962,5]
[421777943,1778141445000,-1849.0,0.00012962,5]
[421777938,1778141445000,-1680.0,0.00012649,2]
[421777946,1778141445000,-5406.29503469,0.0001305,2]
[421777956,1778141445000,-538.66347567,0.00013613,2]
[421777958,1778141445000,-500.0,0.00013698,2]
[421777957,1778141445000,-500.0,0.00013698,2]
[421777959,1778141445000,-165.67,0.00013699,2]
[421777945,1778141445000,-5668.15398274,0.00013,2]
[421777949,1778141445000,-7498.57036046,0.00013301,2]
[421777948,1778141445000,-165.63,0.00013266,2]
[421777950,1778141445000,-4761.25138763,0.00013301,2]
[421777947,1778141445000,-2319.72410669,0.00013167,2]
[421777955,1778141445000,-1008.96194888,0.00013362,2]
[421777954,1778141445000,-601.09827335,0.0001334,2]
[421777952,1778141445000,-1008.96194888,0.00013321,2]
[421777963,1778141445000,-2405.55389864,0.00013715,2]
[421777961,1778141445000,-11046.55,0.00013699,2]
[421777964,1778141445000,-2000.0,0.00013801,2]
[421777962,1778141445000,-29259.68,0.00013699,2]
[421777971,1778141445000,-395.0,0.00013946,2]
[421777969,1778141445000,-395.0,0.00013933,2]
[421777970,1778141445000,-395.0,0.00013935,2]
[421777968,1778141445000,-319.0,0.00013914,2]
[421777994,1778141445000,-500.0,0.00014,2]
[421777967,1778141445000,-4761.25138763,0.00013901,2]
[421778006,1778141445000,-500.0,0.00014,2]
[421778033,1778141445000,-500.0,0.00014,2]
[421778035,1778141445000,-500.0,0.00014,2]
[421778037,1778141445000,-500.0,0.00014,2]
[421778040,1778141445000,-500.0,0.00014,2]
[421778045,1778141445000,-500.0,0.00014,2]
[421778038,1778141445000,-500.0,0.00014,2]
[421778034,1778141445000,-500.0,0.00014,2]
[421778046,1778141445000,-500.0,0.00014,2]
[421778036,1778141445000,-500.0,0.00014,2]
[421778039,1778141445000,-500.0,0.00014,2]
[421778042,1778141445000,-500.0,0.00014,2]
[421778041,1778141445000,-500.0,0.00014,2]
[421778024,1778141445000,-500.0,0.00014,2]
[421778044,1778141445000,-500.0,0.00014,2]
[421778052,1778141445000,-500.0,0.00014,2]
[421778047,1778141445000,-500.0,0.00014,2]
[421778048,1778141445000,-500.0,0.00014,2]
[421778049,1778141445000,-500.0,0.00014,2]
[421778051,1778141445000,-500.0,0.00014,2]
[421778050,1778141445000,-500.0,0.00014,2]
[421778054,1778141445000,-500.0,0.00014,2]
[421778056,1778141445000,-500.0,0.00014,2]
[421778057,1778141445000,-500.0,0.00014,2]
[421778055,1778141445000,-500.0,0.00014,2]
[421778058,1778141445000,-500.0,0.00014,2]
[421778004,1778141445000,-500.0,0.00014,2]
[421778053,1778141445000,-500.0,0.00014,2]
[421778022,1778141445000,-500.0,0.00014,2]
[421778043,1778141445000,-500.0,0.00014,2]
[421778026,1778141445000,-438.57,0.00014,2]
[421777996,1778141445000,-500.0,0.00014,2]
[421778029,1778141445000,-500.0,0.00014,2]
[421777998,1778141445000,-500.0,0.00014,2]
[421778001,1778141445000,-500.0,0.00014,2]
[421777999,1778141445000,-500.0,0.00014,2]
[421778000,1778141445000,-500.0,0.00014,2]
[421778008,1778141445000,-500.0,0.00014,2]
[421778018,1778141445000,-500.0,0.00014,2]
[421778019,1778141445000,-500.0,0.00014,2]
[421778011,1778141445000,-500.0,0.00014,2]
[421778017,1778141445000,-500.0,0.00014,2]
[421778013,1778141445000,-500.0,0.00014,2]
[421778010,1778141445000,-500.0,0.00014,2]
[421778015,1778141445000,-500.0,0.00014,2]
[421778007,1778141445000,-500.0,0.00014,2]
[421778030,1778141445000,-500.0,0.00014,2]
[421778027,1778141445000,-500.0,0.00014,2]
[421778009,1778141445000,-500.0,0.00014,2]
[421778025,1778141445000,-500.0,0.00014,2]
[421778028,1778141445000,-500.0,0.00014,2]
[421778023,1778141445000,-500.0,0.00014,2]
[421778032,1778141445000,-500.0,0.00014,2]
[421778021,1778141445000,-500.0,0.00014,2]
[421778020,1778141445000,-500.0,0.00014,2]
[421778014,1778141445000,-500.0,0.00014,2]
[421778016,1778141445000,-500.0,0.00014,2]
[421778012,1778141445000,-151.96,0.00014,2]
[421778031,1778141445000,-500.0,0.00014,2]
[421778080,1778141446000,-395.0,0.00014131,2]
[421778073,1778141446000,-538.66347567,0.00014041,2]
[421778076,1778141446000,-264.60535752,0.00014073,2]
[421778078,1778141446000,-395.0,0.0001412,2]
[421778081,1778141446000,-395.0,0.00014153,2]
[421778085,1778141446000,-500.0,0.00014262,2]
[421778077,1778141446000,-395.0,0.00014083,2]
[421778079,1778141446000,-395.0,0.00014123,2]
[421778082,1778141446000,-323.6,0.000142,2]
[421778072,1778141446000,-395.0,0.00014027,2]
[421778088,1778141446000,-538.66347567,0.0001437,2]
[421778071,1778141446000,-395.0,0.00014019,2]
[421778062,1778141446000,-500.0,0.00014,2]
[421778074,1778141446000,-395.0,0.00014048,2]
[421778070,1778141446000,-395.0,0.00014009,2]
[421778069,1778141446000,-250.0,0.00014,2]
[421778067,1778141446000,-500.0,0.00014,2]
[421778068,1778141446000,-500.0,0.00014,2]
[421778066,1778141446000,-500.0,0.00014,2]
[421778059,1778141446000,-500.0,0.00014,2]
[421778065,1778141446000,-500.0,0.00014,2]
[421778061,1778141446000,-500.0,0.00014,2]
[421778064,1778141446000,-500.0,0.00014,2]
[421778060,1778141446000,-500.0,0.00014,2]
[421778063,1778141446000,-500.0,0.00014,2]
[421778086,1778141446000,-2494.55939289,0.00014263,2]
[421778075,1778141446000,-538.66347567,0.00014063,2]
[421778084,1778141446000,-152.81,0.00014233,2]
[421778087,1778141446000,-538.66347567,0.00014273,2]
[421778090,1778141446000,-7498.57036046,0.00014502,2]
[421778083,1778141446000,-212.14,0.000142,2]
[421778119,1778141446000,-22593.47280185,0.00015,2]
[421778120,1778141446000,-3057.16777514,0.00015,2]
[421778114,1778141446000,-4724.70163971,0.000147,2]
[421778118,1778141446000,-1087.67016758,0.00014999,5]
[421778112,1778141446000,-1554.56,0.00014504,2]
[421778113,1778141446000,-19323.39,0.00014504,2]
[421778117,1778141446000,-168.54,0.00014931,2]
[421778115,1778141446000,-2586.85809042,0.00014811,2]
[421778110,1778141446000,-106999.84777985,0.00014504,2]
[421778111,1778141446000,-150.99,0.00014504,2]
[421778109,1778141446000,2200.0,0.000119,4]
[421778105,1778141446000,-1326.98,0.00014504,2]
[421778116,1778141446000,-210.45903779,0.00014902,2]
[421778103,1778141446000,-7636.29,0.00014504,2]
[421778107,1778141446000,-129121.20222015,0.00014504,2]
[421778089,1778141446000,-165.67,0.00014384,2]
[421778091,1778141446000,-4761.25138763,0.00014502,2]
[421778092,1778141446000,-9999.99,0.00014504,2]
[421778094,1778141446000,-999.99,0.00014504,2]
[421778095,1778141446000,-4639.36,0.00014504,2]
[421778093,1778141446000,-9999.99,0.00014504,2]
[421778098,1778141446000,-907.72,0.00014504,2]
[421778099,1778141446000,-3316.28,0.00014504,2]
[421778097,1778141446000,-299.99,0.00014504,2]
[421778101,1778141446000,-519.82,0.00014504,2]
[421778100,1778141446000,-1214.4,0.00014504,2]
[421778096,1778141446000,-9999.99,0.00014504,2]
[421778128,1778141581000,300.0,0.00011587,2]
[421778141,1778142371000,164.53,0.000301,120]
[421778153,1778142631000,-250.0,0.00013286,2]
[421778148,1778142631000,-344.32,0.00013037,2]
[421778149,1778142631000,-1274.59636732,0.00013135,2]
[421778150,1778142631000,-618.31401655,0.00013135,2]
[421778151,1778142631000,-3922.75961613,0.00013135,2]
[421778152,1778142631000,-500.0,0.00013179,2]
[421778154,1778142631000,-250.0,0.00013387,2]
[421778161,1778142631000,-150.0,0.00013414,2]
[421778156,1778142631000,-228.0,0.00013413,2]
[421778157,1778142631000,-300.0,0.00013413,2]
[421778159,1778142631000,-228.70687485,0.00013414,2]
[421778158,1778142631000,-150.0,0.00013414,2]
[421778162,1778142631000,-258.0,0.00013459,2]
[421778160,1778142631000,-151.82416867,0.00013414,2]
[421778163,1778142631000,-1572.48934035,0.0001346,2]
[421778155,1778142631000,-167.42,0.00013392,2]
[421778198,1778142637000,-8727.61065965,0.0001346,2]
[421778195,1778142637000,-427.51065965,0.0001346,2]
[421778196,1778142637000,-772.37934035,0.0001346,2]
[421778197,1778142637000,-500.0,0.0001346,2]
[421778199,1778142637000,-150.99,0.0001346,2]
[421778205,1778142637000,-999.99,0.00013535,2]
[421778201,1778142637000,-150.00000001,0.00013488,2]
[421778203,1778142637000,-299.99,0.00013535,2]
[421778202,1778142637000,-233.24101531,0.00013535,21]
[421778204,1778142637000,-6308.22,0.00013535,2]
[421778200,1778142637000,-9999.99,0.0001346,2]
[421778220,1778142638000,-2500.0,0.00014288,2]
[421778222,1778142638000,-3310.00259902,0.00014288,2]
[421778216,1778142638000,-500.0,0.00014,2]
[421778230,1778142638000,-2500.0,0.00014341,2]
[421778225,1778142638000,-243.01883952,0.00014288,2]
[421778234,1778142638000,-2500.0,0.00014341,2]
[421778236,1778142638000,-169.26253244,0.00014378,2]
[421778242,1778142638000,-151.0,0.00014379,2]
[421778240,1778142638000,-151.0,0.00014379,2]
[421778246,1778142638000,-151.0,0.00014379,2]
[421778244,1778142638000,-151.0,0.00014379,2]
[421778250,1778142638000,-151.0,0.00014379,2]
[421778248,1778142638000,-151.0,0.00014379,2]
[421778252,1778142638000,-151.0,0.00014379,2]
[421778254,1778142638000,-151.0,0.00014379,2]
[421778238,1778142638000,-151.0,0.00014379,2]
[421778227,1778142638000,-557.58134562,0.00014288,2]
[421778219,1778142638000,-150.0,0.00014247,2]
[421778221,1778142638000,-4271.56009121,0.00014288,2]
[421778256,1778142638000,-151.0,0.00014379,2]
[421778206,1778142638000,-200.0,0.000136,4]
[421778214,1778142638000,-1100.0,0.000139,5]
[421778213,1778142638000,-800.0,0.000138,5]
[421778207,1778142638000,-910.94,0.00013646,2]
[421778209,1778142638000,-290.55978742,0.00013697,21]
[421778208,1778142638000,-159.17631841,0.00013646,21]
[421778212,1778142638000,-200.0,0.00013736,2]
[421778211,1778142638000,-500.0,0.000137,5]
[421778210,1778142638000,-9999.99,0.00013699,2]
[421778215,1778142638000,-207.57,0.00013954,2]
[421778218,1778142638000,-257.84196149,0.00014247,21]
[421778217,1778142638000,-150.0,0.00014159,2]
[421778232,1778142638000,-2500.0,0.00014341,2]
[421778228,1778142638000,-170.02989254,0.00014288,2]
[421778223,1778142638000,-926.37424103,0.00014288,2]
[421778258,1778142638000,-151.0,0.00014379,2]
[421778334,1778142638000,-549.87,0.00014388,2]
[421778264,1778142638000,-151.0,0.00014379,2]
[421778306,1778142638000,-500.0,0.00014387,2]
[421778304,1778142638000,-500.0,0.00014387,2]
[421778294,1778142638000,-500.0,0.00014387,2]
[421778310,1778142638000,-236.43768821,0.00014387,2]
[421778308,1778142638000,-542.8704504,0.00014387,2]
[421778312,1778142638000,-500.0,0.00014387,2]
[421778317,1778142638000,-218.89578563,0.00014387,2]
[421778329,1778142638000,-106317.83375406,0.00014388,2]
[421778315,1778142638000,-179.11354929,0.00014387,2]
[421778319,1778142638000,-1039.934,0.00014387,2]
[421778327,1778142638000,-1163.0,0.00014388,5]
[421778321,1778142638000,-161.624,0.00014387,2]
[421778323,1778142638000,-150.0,0.00014388,2]
[421778332,1778142638000,-342.28689474,0.00014388,2]
[421778260,1778142638000,-151.0,0.00014379,2]
[421778300,1778142638000,-500.0,0.00014387,2]
[421778298,1778142638000,-500.0,0.00014387,2]
[421778325,1778142638000,-1453.0,0.00014388,5]
[421778292,1778142638000,-443.94161305,0.00014387,2]
[421778296,1778142638000,-500.0,0.00014387,2]
[421778262,1778142638000,-151.0,0.00014379,2]
[421778271,1778142638000,-151.0,0.00014379,2]
[421778266,1778142638000,-151.0,0.00014379,2]
[421778283,1778142638000,-504.18452528,0.00014379,2]
[421778281,1778142638000,-500.0,0.00014379,2]
[421778273,1778142638000,-151.0,0.00014379,2]
[421778268,1778142638000,-151.0,0.00014379,2]
[421778284,1778142638000,-2080.17592889,0.00014379,2]
[421778275,1778142638000,-151.0,0.00014379,2]
[421778277,1778142638000,-151.0,0.00014379,2]
[421778286,1778142638000,-892.61419099,0.00014387,2]
[421778288,1778142638000,-1000.0,0.00014387,2]
[421778302,1778142638000,-500.0,0.00014387,2]
[421778279,1778142638000,-231.27312843,0.00014379,2]
[421778290,1778142638000,-500.0,0.00014387,2]
[421778353,1778142639000,-1800.02694516,0.00014388,2]
[421778419,1778142651000,-3626.0,0.00016203,2]
[421778418,1778142651000,-1222.0,0.00016203,2]
[421778408,1778142651000,-2000.0,0.00015143,2]
[421778401,1778142651000,-500.0,0.00014999,2]
[421778406,1778142651000,-2500.0,0.0001501,2]
[421778404,1778142651000,-733133.0615747,0.00015,2]
[421778407,1778142651000,-310.0,0.00015014,3]
[421778403,1778142651000,-500.0,0.00014999,2]
[421778405,1778142651000,-2500.0,0.0001501,2]
[421778420,1778142651000,-6044.0,0.00016203,2]
[421778421,1778142651000,-500.0,0.00016302,2]
[421778414,1778142651000,-2319.72410669,0.00016023,2]
[421778412,1778142651000,-214.90962987,0.00015821,2]
[421778411,1778142651000,-3537.0,0.00015806,2]
[421778415,1778142651000,-223.71509017,0.00016149,2]
[421778413,1778142651000,-300.0,0.00016,2]
[421778417,1778142651000,-1267.0,0.00016203,2]
[421778416,1778142651000,-150.0,0.00016203,2]
[421778423,1778142651000,-499.9643189,0.00016438,2]
[421778425,1778142651000,-2000.0,0.00016825,2]
[421778402,1778142651000,-500.0,0.00014999,2]
[421778409,1778142651000,-2236.95670848,0.00015475,2]
[421778400,1778142651000,-2157.14243826,0.00014927,2]
[421778383,1778142651000,-10297.6883712,0.00014488,2]
[421778398,1778142651000,-219.08390333,0.0001491,2]
[421778378,1778142651000,-2000.0,0.00014388,2]
[421778379,1778142651000,-1106178.1758,0.00014388,2]
[421778377,1778142651000,-1429833.52870604,0.00014388,2]
[421778380,1778142651000,-300.0,0.00014448,2]
[421778381,1778142651000,-500.0,0.00014487,2]
[421778428,1778142651000,-113161.59688033,0.00017,2]
[421778393,1778142651000,-200.0,0.0001488,2]
[421778382,1778142651000,-363792.328295,0.00014488,2]
[421778384,1778142651000,-9687.8570875,0.00014488,2]
[421778385,1778142651000,-16846.4858166,0.00014488,2]
[421778388,1778142651000,-82496.96839369,0.00014522,2]
[421778392,1778142651000,-5460.0,0.0001487,2]
[421778386,1778142651000,-250.0,0.00014497,2]
[421778387,1778142651000,-157.64049058,0.00014499,2]
[421778389,1778142651000,-991.91,0.00014599,2]
[421778391,1778142651000,-2933.53317291,0.000148,2]
[421778390,1778142651000,-3693.36599652,0.000147,2]
[421778394,1778142651000,-5000.0,0.000149,2]
[421778396,1778142651000,-174.19344909,0.00014904,2]
[421778397,1778142651000,-210.45903777,0.0001491,2]
[421778399,1778142651000,-9951.08061106,0.0001491,2]
[421778395,1778142651000,-1400.0,0.000149,5]
[421778432,1778142651000,-189.20905721,0.000176,2]
[421778410,1778142651000,-6420.0,0.00015642,2]
[421778426,1778142651000,-3310.00259894,0.000169,2]
[421778450,1778142651000,-565.85670519,0.00019,2]
[421778452,1778142651000,-3000.0,0.00019178,2]
[421778451,1778142651000,-1037.0,0.00019148,2]
[421778454,1778142651000,-6044.0,0.00019203,2]
[421778456,1778142651000,-3310.00259894,0.00019513,2]
[421778458,1778142651000,-4006.0,0.00019587,2]
[421778460,1778142651000,-300.23997664,0.0002,2]
[421778461,1778142651000,-150.0,0.0002,2]
[421778462,1778142651000,-300.0,0.0002,2]
[421778469,1778142651000,-150.0,0.00020834,2]
[421778453,1778142651000,-3626.0,0.00019203,2]
[421778459,1778142651000,-150.0,0.00019834,2]
[421778466,1778142651000,-1037.0,0.00020148,2]
[421778463,1778142651000,-170.0,0.0002,2]
[421778468,1778142651000,-4103.0,0.00020236,2]
[421778464,1778142651000,-193.155,0.0002,2]
[421778467,1778142651000,-2000.0,0.0002019,2]
[421778471,1778142651000,-1000.0,0.000211,2]
[421778473,1778142651000,-200.0,0.0002122,2]
[421778472,1778142651000,-1037.0,0.00021148,2]
[421778474,1778142651000,-200.0,0.0002122,2]
[421778427,1778142651000,-4271.56009116,0.00016906,2]
[421778465,1778142651000,-1998.0,0.0002,2]
[421778455,1778142651000,-173.96,0.00019212,2]
[421778470,1778142651000,-300.0,0.00021,2]
[421778446,1778142651000,-31852.05493275,0.00019,2]
[421778422,1778142651000,-7984.0,0.00016325,2]
[421778449,1778142651000,-159.0,0.00019,2]
[421778430,1778142651000,-1037.0,0.00017148,2]
[421778429,1778142651000,-152.81,0.00017079,2]
[421778424,1778142651000,-1781.40443734,0.00016571,2]
[421778431,1778142651000,-214.63993676,0.00017519,2]
[421778434,1778142651000,-926.37424097,0.00017892,2]
[421778444,1778142651000,-200.0,0.00018572,2]
[421778445,1778142651000,-4822.65012694,0.00018589,5]
[421778435,1778142651000,-350.0,0.00018,2]
[421778433,1778142651000,-8456.0,0.00017849,2]
[421778438,1778142651000,-883.32876101,0.0001837,2]
[421778457,1778142651000,-4271.56009116,0.00019524,2]
[421778437,1778142651000,-344.32,0.00018252,2]
[421778447,1778142651000,-524.27757038,0.00019,2]
[421778442,1778142651000,-150.0,0.00018572,2]
[421778439,1778142651000,-9874.0,0.00018459,2]
[421778448,1778142651000,-300.0,0.00019,2]
[421778443,1778142651000,-275.0,0.00018572,2]
[421778440,1778142651000,-2000.0,0.00018508,2]
[421778436,1778142651000,-1037.0,0.00018148,2]
[421778441,1778142651000,-170.02989251,0.00018557,2]
[421778535,1778142652000,-440.75,0.00026676,7]
[421778531,1778142652000,-151.0,0.00026296,2]
[421778533,1778142652000,-441.88,0.00026388,2]
[421778534,1778142652000,-2646.0,0.00026426,2]
[421778532,1778142652000,-440.75,0.00026388,2]
[421778528,1778142652000,-243.01883952,0.00026044,2]
[421778530,1778142652000,-441.88,0.00026099,30]
[421778524,1778142652000,-150.0,0.00025834,2]
[421778523,1778142652000,-441.88,0.00025811,7]
[421778537,1778142652000,-310.0,0.00026677,8]
[421778527,1778142652000,-787.0,0.00026018,10]
[421778529,1778142652000,-440.75,0.00026099,30]
[421778547,1778142652000,-501.0,0.00027137,2]
[421778548,1778142652000,-157.64049058,0.000272,2]
[421778539,1778142652000,-440.75,0.00026964,30]
[421778538,1778142652000,-150.0,0.00026834,2]
[421778545,1778142652000,-398.0,0.00027123,2]
[421778541,1778142652000,-167.0,0.00027,7]
[421778542,1778142652000,-170.02989251,0.00027094,2]
[421778540,1778142652000,-441.88,0.00026964,30]
[421778543,1778142652000,-3693.36599652,0.00027111,2]
[421778546,1778142652000,-191.86369455,0.00027123,2]
[421778544,1778142652000,-595.0,0.00027123,2]
[421778549,1778142652000,-440.75,0.00027253,2]
[421778559,1778142652000,-15099.68,0.00027397,10]
[421778550,1778142652000,-441.88,0.00027253,2]
[421778526,1778142652000,-996.0,0.00026018,10]
[421778536,1778142652000,-441.88,0.00026676,7]
[421778525,1778142652000,-3698.0,0.00025847,2]
[421778498,1778142652000,-150.0,0.00022834,2]
[421778517,1778142652000,-447.686,0.00025203,2]
[421778551,1778142652000,-225.85034537,0.000273,30]
[421778497,1778142652000,-170.02989251,0.00022825,2]
[421778496,1778142652000,-200.0,0.00022551,2]
[421778493,1778142652000,-3626.0,0.00022203,2]
[421778495,1778142652000,-243.38697056,0.00022407,2]
[421778494,1778142652000,-6044.0,0.00022203,2]
[421778500,1778142652000,-300.0,0.00023,2]
[421778499,1778142652000,-4326.0,0.00022987,2]
[421778508,1778142652000,-441.88,0.00024658,2]
[421778504,1778142652000,-2748.0,0.0002412,2]
[421778506,1778142652000,-1000.0,0.00024658,2]
[421778503,1778142652000,-306.0,0.00024,2]
[421778502,1778142652000,-150.0,0.00023834,2]
[421778520,1778142652000,-440.75,0.00025523,2]
[421778501,1778142652000,-4987.0,0.00023654,2]
[421778509,1778142652000,-3310.00259894,0.00024738,2]
[421778505,1778142652000,-150.0,0.00024572,2]
[421778511,1778142652000,-150.0,0.00024834,2]
[421778521,1778142652000,-441.88,0.00025523,2]
[421778510,1778142652000,-4271.56009116,0.00024759,2]
[421778512,1778142652000,-500.0,0.00024945,2]
[421778513,1778142652000,-440.75,0.00024946,7]
[421778518,1778142652000,-440.75,0.00025234,30]
[421778516,1778142652000,-3626.0,0.00025203,2]
[421778522,1778142652000,-440.75,0.00025811,7]
[421778519,1778142652000,-441.88,0.00025234,30]
[421778514,1778142652000,-441.88,0.00024946,7]
[421778515,1778142652000,-926.37424097,0.000251,2]
[421778507,1778142652000,-440.75,0.00024658,2]
[421778560,1778142652000,-432.9,0.000274,7]
[421778586,1778142652000,-293.83,0.00028742,2]
[421778553,1778142652000,-2933.53317289,0.0002735,2]
[421778595,1778142652000,-294.58,0.00028864,7]
[421778597,1778142652000,-293.83,0.00028895,30]
[421778588,1778142652000,-293.83,0.00028772,7]
[421778589,1778142652000,-294.58,0.00028802,30]
[421778590,1778142652000,-293.83,0.00028803,30]
[421778591,1778142652000,-294.58,0.00028833,2]
[421778593,1778142652000,-293.83,0.00028834,2]
[421778592,1778142652000,-150.0,0.00028834,2]
[421778594,1778142652000,-293.83,0.00028864,7]
[421778599,1778142652000,-287.0,0.00028904,2]
[421778598,1778142652000,-5436.78,0.000289,7]
[421778609,1778142652000,-293.83,0.00029048,7]
[421778601,1778142652000,-293.83,0.00028926,2]
[421778600,1778142652000,-294.58,0.00028925,2]
[421778610,1778142652000,-294.58,0.00029048,7]
[421778605,1778142652000,-294.58,0.00028987,30]
[421778603,1778142652000,-294.58,0.00028956,7]
[421778602,1778142652000,-293.83,0.00028956,7]
[421778608,1778142652000,-501.0,0.00029048,4]
[421778607,1778142652000,-293.83,0.00029018,2]
[421778604,1778142652000,-293.83,0.00028987,30]